bitfinex/quotes_ETHUSD_20241023
["timestamp","ask_amount","ask_price","bid_price","bid_amount"]
[1729676000682,3.88398,2574.7,2574.4,0.7751]
[1729676001077,7.76801,2574.7,2574.4,0.7751]
[1729676001282,3.88398,2574.7,2574.4,0.7751]
[1729676001688,3.8844,2574.4,2574.1,0.7985]
[1729676001929,3.8841,2574.6,2574.1,0.7985]
[1729676002121,3.8841,2574.6,2574.1,4.68333]
[1729676003524,3.54130716,2574.6,2574.1,0.7985]
[1729676003829,3.54130716,2574.6,2574.1,4.68333]
[1729676003830,3.88425,2574.5,2574.1,4.68333]
[1729676004004,3.88425,2574.5,2574.1,0.7985]
[1729676005142,3.88443,2574.4,2574.1,0.7985]
[1729676005319,7.7686,2574.5,2574.1,0.7985]
[1729676005524,3.88425,2574.5,2574.1,0.7985]
[1729676007400,3.88467,2574.3,2574.1,0.7985]
[1729676007606,7.42523716,2574.8,2574.1,0.7985]
[1729676007827,3.88413,2574.6,2574.1,4.68333]
[1729676008562,3.88407,2574.7,2574.1,4.68333]
[1729676009035,3.8841,2574.6,2574.1,4.68333]
[1729676011199,3.88407,2574.7,2574.1,4.68333]
[1729676011437,3.88407,2574.7,2574.1,0.7985]
[1729676011438,3.88426,2574.5,2574.1,0.7985]
[1729676011647,3.88426,2574.5,2574.1,4.68334]
[1729676011959,3.88405,2574.7,2574.1,4.68334]
[1729676012158,3.88349,2575.0,2574.6,0.8315]
[1729676013769,3.88375,2574.9,2574.6,0.8315]
[1729676014740,3.88381,2574.8,2574.6,0.8315]
[1729676015306,3.88375,2574.9,2574.6,0.8315]
[1729676015506,3.88391,2574.8,2574.6,0.8315]
[1729676019155,3.88398,2574.7,2574.4,0.7722]
[1729676019664,3.8841,2574.6,2574.4,0.7722]
[1729676019813,3.88398,2574.7,2574.4,0.7722]
[1729676020453,7.76803,2574.7,2574.4,0.7722]
[1729676020666,3.88375,2574.9,2574.4,0.7722]
[1729676020816,7.76751,2574.9,2574.4,0.7722]
[1729676021016,3.88364,2574.9,2574.4,3.88431]
[1729676021258,3.88362,2575.0,2574.5,4.70612]
[1729676021462,3.88365,2574.9,2574.5,4.70612]
[1729676023072,3.8836,2575.0,2574.5,4.70612]
[1729676023361,3.8836,2575.0,2574.5,4.70605]
[1729676024250,3.54130716,2575.1,2574.5,0.8219]
[1729676024459,3.8839,2574.8,2574.5,0.8219]
[1729676025228,3.88349,2575.0,2574.5,0.8219]
[1729676025416,3.88335,2575.1,2574.7,4.66564]
[1729676025622,3.88335,2575.1,2574.7,0.7817]
[1729676026646,3.88335,2575.1,2574.0,3.54130716]
[1729676026647,3.88372,2574.9,2574.4,4.65677]
[1729676026835,3.88372,2574.9,2574.4,4.73444912]
[1729676027559,3.88372,2574.9,2574.5,3.88421]
[1729676027866,3.88372,2574.9,2574.6,0.7724]
[1729676028452,3.88381,2574.8,2574.6,0.7724]
[1729676030143,3.88364,2574.9,2574.6,0.7724]
[1729676030976,7.76743,2574.9,2574.6,0.7724]
[1729676031254,3.88364,2574.9,2574.6,0.7724]
[1729676032466,5.62296292,2574.9,2574.6,0.7724]
[1729676035485,1.73932292,2574.9,2574.6,0.7724]
[1729676035786,5.62281292,2575.0,2574.6,0.7724]
[1729676037561,1.73932292,2574.9,2574.6,0.7724]
[1729676037766,5.62281292,2575.0,2574.6,0.7724]
[1729676039002,1.73932292,2574.9,2574.6,0.7724]
[1729676039187,5.62281292,2575.0,2574.6,0.7724]
[1729676039561,0.7922,2575.4,2574.3,5.62376292]
[1729676039562,3.88304,2575.3,2574.8,3.88368]
[1729676039903,3.88304,2575.3,2574.9,0.7997]
[1729676039904,1.73932292,2575.1,2574.9,0.7997]
[1729676040289,1.73932292,2575.2,2574.9,0.7997]
[1729676040599,1.73932292,2575.1,2574.9,0.7997]
[1729676044134,3.88335,2575.1,2574.9,0.7997]
[1729676044325,5.62252292,2575.2,2574.9,0.7997]
[1729676045199,3.8832,2575.2,2574.9,0.7997]
[1729676045407,3.88342,2575.1,2574.9,0.7997]
[1729676045587,3.88349,2575.0,2574.9,0.7997]
[1729676045929,3.88349,2575.0,2574.6,0.8098]
[1729676045930,3.88365,2574.9,2574.6,0.8098]
[1729676047497,3.88345,2575.1,2574.8,0.7963]
[1729676048391,5.62277292,2575.1,2574.8,0.7963]
[1729676048701,3.88345,2575.1,2574.8,0.7963]
[1729676049628,3.88353,2575.0,2574.8,0.7963]
[1729676049788,5.62277292,2575.1,2574.8,0.7963]
[1729676050193,3.88345,2575.1,2574.8,0.7963]
[1729676051275,5.62277292,2575.1,2574.8,0.7963]
[1729676051459,1.73932292,2575.1,2574.8,0.7963]
[1729676051785,5.62293292,2575.0,2574.8,0.7963]
[1729676051929,5.62293292,2575.0,2574.5,0.07767076]
[1729676051930,0.7934,2574.9,2574.5,0.07767076]
[1729676052271,6.41645292,2574.9,2574.4,4.65259]
[1729676052438,3.88373,2574.9,2574.4,6.39191292]
[1729676053063,3.88373,2574.9,2574.5,3.96191681]
[1729676053250,6.39344292,2575.1,2574.6,6.44581292]
[1729676053251,3.88342,2575.1,2574.6,6.44581292]
[1729676053449,3.88342,2575.1,2574.6,6.52348488]
[1729676053774,5.62274292,2575.1,2574.6,4.78416196]
[1729676054074,3.8835,2575.0,2574.6,4.78416196]
[1729676054953,3.8835,2575.0,2574.6,4.70649]
[1729676055153,3.88358,2575.0,2574.6,0.8224]
[1729676055678,3.88358,2575.0,2574.6,4.78415263]
[1729676056552,3.88358,2575.0,2574.6,4.70648]
[1729676056751,1.73932292,2575.1,2574.6,4.70648]
[1729676056992,3.88335,2575.1,2574.6,4.78415264]
[1729676057505,3.88335,2575.1,2574.7,3.88394]
[1729676057858,5.62267292,2575.1,2574.7,3.88394]
[1729676058188,3.88335,2575.1,2574.7,3.88394]
[1729676060298,3.88335,2575.1,2574.6,4.78415266]
[1729676060893,5.62267292,2575.1,2574.6,6.40976895]
[1729676061054,3.88335,2575.1,2574.6,4.78415266]
[1729676062157,5.62288292,2575.0,2574.6,0.8224]
[1729676062352,3.88356,2575.0,2574.6,0.8224]
[1729676063101,3.88356,2575.0,2574.6,4.70646]
[1729676063593,1.73932292,2575.1,2574.6,4.70646]
[1729676063594,5.62266292,2575.1,2574.6,4.70646]
[1729676063800,5.62266292,2575.1,2574.6,4.78413279]
[1729676063801,3.88334,2575.1,2574.6,4.78413279]
[1729676064296,5.62266292,2575.1,2574.6,4.70646]
[1729676064497,3.88352,2575.0,2574.6,0.8224]
[1729676064856,3.88352,2575.0,2574.6,4.70648]
[1729676065355,1.73932292,2575.1,2574.6,4.78415282]
[1729676065556,3.88335,2575.1,2574.6,4.78415282]
[1729676065858,5.62267292,2575.1,2574.6,4.78415282]
[1729676066282,3.88335,2575.1,2574.6,7.84576282]
[1729676066592,7.76656,2575.2,2574.7,4.71457278]
[1729676066797,3.88327,2575.2,2574.7,4.6369]
[1729676066960,5.62259292,2575.2,2574.7,4.6369]
[1729676067496,9.50589292,2575.2,2574.7,4.6369]
[1729676068902,3.88336,2575.1,2574.7,4.6369]
[1729676069978,3.88327,2575.2,2574.7,4.6369]
[1729676070180,3.88327,2575.2,2574.7,6.26251629]
[1729676070576,7.76654,2575.2,2574.7,6.26251629]
[1729676070781,7.76654,2575.2,2574.7,4.6369]
[1729676070978,9.50586292,2575.2,2574.7,4.6369]
[1729676071487,5.62259292,2575.2,2574.7,4.6369]
[1729676071683,9.50589292,2575.2,2574.7,4.6369]
[1729676072167,3.88335,2575.1,2574.7,0.753]
[1729676073210,3.88335,2575.1,2574.7,4.63691]
[1729676073423,6.39303292,2575.4,2574.8,3.88375]
[1729676073723,3.88319,2575.2,2574.9,0.8286]
[1729676074069,1.73932292,2575.3,2574.9,0.8286]
[1729676074070,5.62237292,2575.3,2574.9,0.8286]
[1729676074985,3.88274,2575.5,2575.0,3.8834]
[1729676075193,3.88223,2575.9,2575.5,0.8286]
[1729676075595,3.88237,2575.8,2575.5,0.8286]
[1729676075797,3.88259,2575.6,2575.5,0.8286]
[1729676076799,3.88244,2575.7,2575.5,0.8286]
[1729676077219,3.88259,2575.6,2575.5,0.8286]
[1729676077375,3.88274,2575.5,2575.2,0.7788]
[1729676078015,3.8826,2575.6,2575.2,0.8564555]
[1729676078571,3.8826,2575.6,2575.2,2.59577842]
[1729676078992,3.88244,2575.7,2575.2,6.47895842]
[1729676080615,3.88244,2575.7,2575.2,4.7396355]
[1729676080939,3.88244,2575.7,2575.2,6.47895842]
[1729676081482,5.62201292,2575.6,2575.2,0.8564555]
[1729676081676,3.88269,2575.6,2575.2,0.7788]
[1729676082094,3.88277,2575.5,2575.2,0.7788]
[1729676082293,1.73932292,2575.3,2575.2,0.7788]
[1729676082480,3.8827,2575.6,2575.2,0.7788]
[1729676082481,5.62208292,2575.5,2575.2,0.7788]
[1729676082883,1.73932292,2575.4,2575.2,0.7788]
[1729676083084,3.883,2575.4,2575.2,0.7788]
[1729676085208,1.73932292,2575.5,2575.2,0.7788]
[1729676085394,5.62207292,2575.5,2575.2,0.7788]
[1729676085999,1.73932292,2575.4,2575.2,0.7788]
[1729676086416,5.62224292,2575.4,2575.2,0.7788]
[1729676086585,5.62222292,2575.4,2575.2,0.7788]
[1729676086783,1.73932292,2575.4,2575.2,0.7788]
[1729676087232,5.62224292,2575.4,2575.2,0.7788]
[1729676088028,5.62206292,2575.5,2575.2,0.7788]
[1729676088227,3.88289,2575.4,2575.2,0.7788]
[1729676088521,5.62221292,2575.4,2575.2,0.7788]
[1729676088888,1.73932292,2575.4,2575.2,0.7788]
[1729676089290,5.62207292,2575.5,2575.2,0.7788]
[1729676090825,3.8827,2575.6,2575.2,0.7788]
[1729676091203,3.88238,2575.8,2575.4,0.8054]
[1729676091446,3.88238,2575.8,2575.4,4.68827]
[1729676091609,5.62170292,2575.8,2575.4,4.68827]
[1729676093416,5.62183292,2575.7,2575.4,0.8054]
[1729676093621,1.73932292,2575.7,2575.4,0.8054]
[1729676093831,3.88259,2575.6,2575.4,0.8054]
[1729676094237,1.73932292,2575.7,2575.4,0.8054]
[1729676094540,3.88238,2575.8,2575.4,0.8054]
[1729676094900,5.62170292,2575.8,2575.4,0.8054]
[1729676095120,5.62169292,2575.8,2575.4,0.8054]
[1729676096421,9.50408292,2575.8,2575.4,0.8054]
[1729676096612,1.73932292,2575.7,2575.4,0.8054]
[1729676096939,5.62186292,2575.7,2575.4,0.8054]
[1729676098334,3.88254,2575.7,2575.4,0.8054]
[1729676098920,3.88291,2575.4,2575.2,0.8064]
[1729676099126,5.62223292,2575.4,2575.2,0.8064]
[1729676099326,3.88291,2575.4,2575.2,0.8064]
[1729676100496,6.42722292,2575.6,2575.2,0.8064]
[1729676100700,3.8827,2575.6,2575.2,0.8064]
[1729676100895,3.88274,2575.5,2575.2,0.8064]
[1729676102203,3.8826,2575.6,2575.2,2.54572292]
[1729676102724,3.8826,2575.6,2575.2,0.8064]
[1729676102924,0.7857,2576.1,2575.5,2.51102292]
[1729676103129,3.88259,2575.6,2575.5,0.7717]
[1729676103307,3.88236,2575.8,2575.2,4.65488]
[1729676103508,3.88245,2575.7,2575.2,4.65488]
[1729676103942,0.7857,2576.1,2575.6,1.73932292]
[1729676104235,3.88158,2576.3,2575.9,0.8137]
[1729676104446,3.8819,2576.1,2575.9,0.8137]
[1729676105735,3.88198,2576.0,2575.9,0.8137]
[1729676105939,7.76386,2576.1,2575.7,0.8102]
[1729676106109,3.8819,2576.1,2575.7,0.8102]
[1729676106308,3.8819,2576.1,2575.7,6.43194292]
[1729676106506,3.8819,2576.1,2575.7,4.69262]
[1729676106769,3.8819,2576.1,2575.7,0.8102]
[1729676106975,5.62160292,2575.8,2575.7,0.8102]
[1729676107175,5.62160292,2575.8,2575.3,3.88296]
[1729676107176,3.88228,2575.8,2575.4,0.8102]
[1729676107328,3.88217,2575.9,2575.4,6.43233292]
[1729676107833,3.88244,2575.7,2575.4,0.8102]
[1729676108336,3.88262,2575.6,2575.4,0.8102]
[1729676108552,1.73932292,2575.5,2575.4,0.8102]
[1729676108752,1.73932292,2575.5,2575.1,0.7592]
[1729676108753,3.88274,2575.5,2575.1,0.7592]
[1729676109197,3.88274,2575.5,2575.1,2.49852292]
[1729676109465,3.88274,2575.5,2575.1,0.7592]
[1729676109766,3.88253,2575.7,2575.1,6.38185292]
[1729676109983,3.88221,2575.9,2575.6,0.8133]
[1729676111671,1.73932292,2575.9,2575.6,0.8133]
[1729676111962,3.88231,2575.8,2575.6,0.8133]
[1729676112171,3.88231,2575.8,2575.4,0.7985]
[1729676112375,3.8819,2576.1,2575.6,3.88258]
[1729676112532,7.76387,2576.1,2575.7,0.8251]
[1729676112734,7.76381,2576.1,2575.7,0.8251]
[1729676113073,3.88199,2576.0,2575.7,0.8251]
[1729676113257,3.8819,2576.1,2575.7,0.8251]
[1729676113832,4.68501,2576.2,2575.7,0.8251]
[1729676114028,4.68501,2576.2,2575.7,4.70746]
[1729676115951,3.88191,2576.1,2575.7,0.8251]
[1729676116738,3.88191,2576.1,2575.7,4.70752]
[1729676116936,3.88191,2576.1,2575.7,0.8251]
[1729676117861,3.88191,2576.1,2575.7,4.70753]
[1729676118062,3.88191,2576.1,2575.7,0.8251]
[1729676119697,7.76383,2576.1,2575.7,0.8251]
[1729676119904,3.88191,2576.1,2575.7,0.8251]
[1729676120100,3.88198,2576.0,2575.7,0.8251]
[1729676120283,3.88191,2576.1,2575.7,0.8251]
[1729676120499,7.76385,2576.1,2575.7,0.8251]
[1729676120796,3.88191,2576.1,2575.7,0.8251]
[1729676121802,3.88165,2576.3,2575.7,0.8251]
[1729676121985,3.88165,2576.3,2575.7,4.7075]
[1729676122167,3.88165,2576.3,2575.8,3.88228]
[1729676122850,3.88164,2576.3,2575.8,3.88228]
[1729676123692,7.76331,2576.3,2575.8,3.88228]
[1729676123983,3.88175,2576.2,2575.7,4.70752]
[1729676124147,3.88162,2576.3,2575.8,3.88221]
[1729676124576,3.88162,2576.3,2575.7,0.8251]
[1729676124777,3.88179,2576.2,2575.7,4.70745]
[1729676125183,3.88179,2576.2,2575.7,0.8251]
[1729676125388,3.88179,2576.2,2575.8,3.88227]
[1729676125994,3.88146,2576.4,2575.9,4.69814]
[1729676126883,3.88153,2576.3,2575.9,4.69814]
[1729676127191,3.88153,2576.3,2575.9,0.8161]
[1729676127689,3.88139,2576.4,2576.0,3.88196]
[1729676127887,3.88139,2576.4,2576.1,0.8161]
[1729676128858,3.88153,2576.3,2576.1,0.8161]
[1729676129267,3.8817,2576.2,2575.9,0.8161]
[1729676129769,3.88186,2576.1,2575.9,0.8161]
[1729676130185,3.8817,2576.2,2575.9,0.8161]
[1729676130379,3.88192,2576.1,2575.9,0.8161]
[1729676130566,3.88198,2576.0,2575.6,4.69868]
[1729676130958,3.88171,2576.2,2575.6,4.69868]
[1729676131157,3.88184,2576.1,2575.6,8.58115]
[1729676133558,3.88149,2576.4,2575.9,3.9596336]
[1729676133764,3.88149,2576.4,2576.0,0.8222]
[1729676135199,3.88105,2576.7,2576.1,0.7879]
[1729676135363,3.88105,2576.7,2576.1,0.86553361]
[1729676135562,3.88105,2576.7,2576.2,0.7879]
[1729676136003,3.88105,2576.7,2576.2,4.66946]
[1729676136299,5.61816745,2576.6,2576.2,0.7879]
[1729676136498,5.61794745,2576.7,2576.2,4.66957]
[1729676136905,1.73701745,2576.6,2576.2,0.7879]
[1729676137203,3.88124,2576.5,2576.2,0.7879]
[1729676137506,3.88109,2576.6,2576.2,0.7879]
[1729676137707,1.73701745,2576.3,2576.2,0.7879]
[1729676138016,3.88124,2576.5,2576.0,4.67831]
[1729676138804,3.88102,2576.7,2576.3,3.88146]
[1729676141603,3.88102,2576.7,2576.3,5.61847745]
[1729676141783,3.88102,2576.7,2576.3,3.88146]
[1729676141984,3.8808,2576.8,2576.3,3.88146]
[1729676142214,3.8808,2576.8,2576.4,0.7728]
[1729676143406,5.61781745,2576.8,2576.4,0.7728]
[1729676143617,5.61766745,2576.9,2576.4,4.65408]
[1729676143982,1.73701745,2576.8,2576.4,4.65408]
[1729676144299,5.61771745,2576.9,2576.4,4.65408]
[1729676144507,3.8807,2576.9,2576.4,4.65408]
[1729676144725,5.61771745,2576.9,2576.4,4.65408]
[1729676149139,5.61781745,2576.8,2576.4,4.65408]
[1729676149926,1.73701745,2576.6,2576.4,0.7728]
[1729676150143,0.7844,2576.7,2576.4,0.7728]
[1729676150345,4.6651,2576.9,2576.4,0.7728]
[1729676150595,3.8809,2576.8,2576.4,0.7728]
[1729676151306,3.88094,2576.7,2576.4,0.7728]
[1729676151503,5.61780745,2576.8,2576.4,0.7728]
[1729676152107,1.73701745,2576.6,2576.4,0.7728]
[1729676152428,1.73701745,2576.7,2576.4,0.7728]
[1729676152627,5.61796745,2576.7,2576.4,0.7728]
[1729676152833,1.73701745,2576.8,2576.4,0.7728]
[1729676153138,5.61779745,2576.8,2576.4,0.7728]
[1729676153521,5.61779745,2576.8,2576.4,4.65418]
[1729676154748,0.7963,2577.7,2576.9,0.7951]
[1729676155039,1.73701745,2577.1,2576.9,0.7951]
[1729676156437,5.61743745,2577.1,2576.6,0.7503]
[1729676156771,1.73701745,2577.1,2576.6,4.63129]
[1729676157270,5.61742745,2577.1,2576.6,4.6313]
[1729676157834,3.88041,2577.1,2576.6,4.6313]
[1729676158033,3.88048,2577.0,2576.6,0.7503]
[1729676158242,5.61755745,2577.0,2576.6,0.7503]
[1729676158533,5.61787745,2576.8,2576.6,0.7503]
[1729676158735,3.88128,2576.5,2576.3,0.7652]
[1729676158958,3.88116,2576.6,2576.3,0.7652]
[1729676160257,1.73701745,2576.7,2576.3,0.7652]
[1729676160258,3.881,2576.7,2576.3,0.7652]
[1729676161071,3.88113,2576.6,2576.3,0.7652]
[1729676161250,3.88129,2576.5,2576.3,0.7652]
[1729676161450,3.88129,2576.5,2575.7,3.0]
[1729676161451,1.73701745,2576.4,2575.7,0.8031]
[1729676161764,1.73701745,2575.8,2575.7,0.8031]
[1729676162075,5.61923745,2575.9,2575.7,0.8031]
[1729676162385,3.88207,2576.0,2575.7,0.8031]
[1729676162386,5.61908745,2576.0,2575.7,0.8031]
[1729676162541,3.88213,2575.9,2575.7,0.8031]
[1729676162738,5.61908745,2576.0,2575.7,0.8031]
[1729676162957,5.61908745,2576.0,2575.4,0.7608]
[1729676162958,3.88232,2575.8,2575.4,0.7608]
[1729676163547,3.88244,2575.7,2575.4,0.7608]
[1729676163760,3.88178,2576.2,2575.6,3.88246]
[1729676163962,3.88178,2576.2,2575.8,6.42687745]
[1729676164277,3.88085,2576.8,2576.0,0.8076]
[1729676164278,3.88117,2576.6,2576.0,0.8076]
[1729676164457,3.881,2576.7,2576.1,3.88176]
[1729676164653,3.881,2576.7,2576.2,4.68917]
[1729676166271,7.76202,2576.7,2576.2,4.68917]
[1729676166770,3.881,2576.7,2576.2,4.68917]
[1729676166968,7.76205,2576.7,2576.2,0.8076]
[1729676167143,3.881,2576.7,2576.2,4.68924]
[1729676167791,3.88076,2576.9,2576.4,3.88126]
[1729676167971,3.88076,2576.9,2576.4,7.76256]
[1729676168375,3.88076,2576.9,2576.5,3.88123]
[1729676168548,3.88048,2577.0,2576.5,3.88123]
[1729676168748,3.88075,2576.9,2576.3,8.52956]
[1729676168996,3.88087,2576.8,2576.3,4.64812]
[1729676169171,7.76174,2576.8,2576.3,4.64812]
[1729676169395,3.88087,2576.8,2576.3,4.64812]
[1729676169545,3.88058,2577.0,2576.1,3.88172]
[1729676169546,3.8812,2576.6,2576.1,3.88172]
[1729676169753,3.8812,2576.6,2575.9,6.30538775]
[1729676169754,3.0,2576.5,2575.9,0.7978]
[1729676169989,3.88153,2576.3,2575.9,4.67993]
[1729676170179,4.34626358,2576.7,2575.9,4.67985]
[1729676170180,3.8812,2576.6,2575.9,4.67985]
[1729676170381,3.8812,2576.6,2575.6,3.52836358]
[1729676170382,3.88087,2576.8,2576.1,0.7978]
[1729676170734,3.88077,2576.9,2576.5,0.7978]
[1729676172996,3.88029,2577.2,2576.5,3.88119]
[1729676173194,3.0,2577.5,2576.5,3.88119]
[1729676173195,3.0,2577.5,2576.7,0.7859]
[1729676173416,3.88025,2577.2,2576.7,4.6668]
[1729676173590,3.88044,2577.1,2576.7,0.7859]
[1729676173996,3.88048,2577.0,2576.7,0.7859]
[1729676174205,3.8804,2577.1,2576.7,0.7859]
[1729676174514,3.88042,2577.1,2576.7,0.7859]
[1729676174927,3.88048,2577.0,2576.7,0.7859]
[1729676175619,3.88025,2577.2,2576.7,0.7859]
[1729676175841,3.88036,2577.1,2576.7,0.7859]
[1729676176033,7.76081,2577.1,2576.7,0.7859]
[1729676176230,3.88036,2577.1,2576.7,0.7859]
[1729676176528,3.88012,2577.3,2576.7,4.66672]
[1729676176702,3.88035,2577.1,2576.7,0.7859]
[1729676177724,3.88035,2577.1,2576.7,4.66682]
[1729676178327,3.0,2577.5,2576.8,0.7753]
[1729676178654,0.1351397,2578.8,2576.8,0.7753]
[1729676178655,3.87868,2578.2,2577.7,0.7753]
[1729676178947,3.87868,2578.2,2577.8,0.07758136]
[1729676179347,3.87868,2578.2,2577.7,0.7753]
[1729676179554,3.87882,2578.1,2577.7,0.7753]
[1729676179860,3.87868,2578.2,2577.7,0.7753]
[1729676180349,7.40704358,2578.2,2577.7,0.7753]
[1729676180665,7.40704358,2578.2,2577.7,4.65471]
[1729676181735,3.87891,2578.1,2577.7,0.7753]
[1729676181953,7.40704358,2578.2,2577.7,0.7753]
[1729676182110,3.52836358,2578.2,2577.8,3.87924]
[1729676182548,7.40681358,2578.4,2577.8,7.75843]
[1729676182940,7.40681358,2578.4,2577.8,3.87919]
[1729676183137,7.40681358,2578.4,2577.8,3.95676653]
[1729676183646,3.87927,2577.8,2577.4,0.7654]
[1729676183855,7.40740358,2578.0,2577.5,3.87971]
[1729676184016,3.52836358,2578.0,2577.5,3.87963]
[1729676184211,7.40743358,2578.0,2577.4,4.72274792]
[1729676184416,3.87913,2577.9,2577.4,4.64516]
[1729676184756,7.40743358,2578.0,2577.4,4.64516]
[1729676185267,3.87916,2577.9,2577.4,4.64516]
[1729676185431,7.40743358,2578.0,2577.4,4.64516]
[1729676185630,7.40742358,2578.0,2577.4,8.52494]
[1729676185845,7.40742358,2578.0,2577.5,3.87969]
[1729676186369,7.40734358,2578.0,2577.4,8.52495]
[1729676186545,7.40734358,2578.0,2577.5,0.07758797]
[1729676187148,7.40734358,2578.0,2577.5,3.95725797]
[1729676187460,3.87874,2578.2,2577.6,3.87956]
[1729676187461,7.40710358,2578.2,2577.6,3.87956]
[1729676187636,3.87885,2578.1,2577.7,0.8046]
[1729676188263,3.87897,2578.0,2577.7,0.8046]
[1729676188632,3.87914,2577.9,2577.7,0.8046]
[1729676189053,11.28640358,2578.0,2577.7,0.8046]
[1729676189367,7.40733358,2578.0,2577.7,0.8046]
[1729676189878,3.87922,2577.9,2577.7,0.8046]
[1729676190081,3.87922,2577.9,2577.4,0.7999]
[1729676190082,3.52836358,2577.8,2577.4,0.7999]
[1729676190380,3.87943,2577.7,2577.4,0.7999]
[1729676190883,3.87912,2577.9,2577.4,0.7999]
[1729676193264,3.87912,2577.9,2577.4,4.67977]
[1729676193442,3.87929,2577.8,2577.4,0.7999]
[1729676193786,7.40733358,2578.0,2577.5,3.95729822]
[1729676194478,3.87897,2578.0,2577.5,3.95729822]
[1729676194870,3.87892,2578.1,2577.6,0.7811]
[1729676194871,7.75782,2578.1,2577.6,0.7811]
[1729676195245,3.8789,2578.1,2577.6,0.85868328]
[1729676195443,3.8789,2578.1,2577.6,4.73824328]
[1729676195850,3.8789,2578.1,2577.6,0.7811]
[1729676196047,3.87862,2578.3,2577.8,0.7811]
[1729676196492,0.1251397,2578.8,2578.1,0.55]
[1729676196646,3.87824,2578.5,2578.2,0.7811]
[1729676197059,7.7566,2578.5,2578.2,0.7811]
[1729676197264,3.87841,2578.4,2578.2,0.7811]
[1729676197499,3.87852,2578.3,2577.7,0.7811]
[1729676197697,3.87875,2578.2,2577.7,4.66052]
[1729676197914,3.87898,2578.0,2577.7,0.7811]
[1729676198197,3.87876,2578.2,2577.7,0.7811]
[1729676198407,7.75754,2578.2,2577.7,0.7811]
[1729676198561,3.87842,2578.4,2577.7,0.7811]
[1729676198763,3.87842,2578.4,2577.8,3.87926]
[1729676198764,3.87852,2578.3,2577.8,3.87926]
[1729676199072,4.0029897,2578.8,2578.2,3.0]
[1729676199276,4.0029897,2578.8,2578.0,0.7811]
[1729676199277,3.87837,2578.4,2578.0,0.7811]
[1729676199474,3.87825,2578.5,2578.0,4.65995]
[1729676199673,3.87825,2578.5,2578.0,0.7811]
[1729676200070,3.87825,2578.5,2578.0,4.66006]
[1729676200271,3.87838,2578.4,2578.0,0.7811]
[1729676200993,3.87819,2578.6,2578.0,4.66006]
[1729676201506,3.87819,2578.6,2578.0,4.65999]
[1729676201912,3.8783,2578.5,2578.0,4.65999]
[1729676202212,3.8784,2578.4,2578.0,0.7811]
[1729676202377,7.75686,2578.4,2578.0,0.7811]
[1729676202574,3.87872,2578.2,2578.0,0.7811]
[1729676202777,3.87883,2578.1,2577.7,0.7856]
[1729676203111,3.87898,2578.0,2577.7,0.7856]
[1729676203282,3.87898,2578.0,2577.5,3.87959]
[1729676203283,3.87915,2577.9,2577.5,0.7856]
[1729676203688,3.87898,2578.0,2577.5,0.7856]
[1729676203887,7.75809,2578.0,2577.5,0.7856]
[1729676204221,3.87898,2578.0,2577.5,4.6653]
[1729676204519,3.87882,2578.2,2577.6,0.7856]
[1729676204722,3.87876,2578.2,2577.7,3.95699289]
[1729676205014,3.87876,2578.2,2577.7,7.83633289]
[1729676205311,3.87848,2578.4,2577.8,3.95682905]
[1729676205515,3.87848,2578.4,2577.9,3.87911]
[1729676205917,3.87817,2578.6,2578.0,0.07757524]
[1729676206122,3.87847,2578.4,2578.1,0.7655]
[1729676206813,4.0029097,2578.8,2578.1,4.64419]
[1729676207018,4.0029097,2578.8,2578.3,3.87844]
[1729676207211,4.0029097,2578.8,2578.1,0.7655]
[1729676207212,3.8784,2578.4,2578.1,0.7655]
[1729676207413,4.70718,2578.6,2578.1,0.7655]
[1729676207616,0.829,2578.6,2578.1,0.7655]
[1729676207925,3.87853,2578.3,2578.1,0.7655]
[1729676208083,3.87846,2578.4,2578.1,0.7655]
[1729676208424,3.87853,2578.3,2578.1,0.7655]
[1729676208603,3.87846,2578.4,2578.1,0.7655]
[1729676208985,7.75692,2578.4,2578.1,0.7655]
[1729676209183,3.87846,2578.4,2578.1,0.7655]
[1729676209515,3.87856,2578.3,2578.1,0.7655]
[1729676209716,3.87846,2578.4,2578.1,0.7655]
[1729676210223,4.70718,2578.6,2578.1,0.7655]
[1729676210424,3.87818,2578.6,2578.1,0.7655]
[1729676210583,3.87844,2578.4,2578.1,0.7655]
[1729676210788,3.87855,2578.3,2578.1,0.7655]
[1729676211785,3.87855,2578.3,2577.8,0.8175]
[1729676211993,3.87898,2578.0,2577.8,0.8175]
[1729676212537,7.75756,2578.2,2577.8,0.8175]
[1729676212839,3.87884,2578.1,2577.8,0.8175]
[1729676213341,3.87859,2578.3,2577.8,0.8175]
[1729676213632,4.8109897,2578.8,2577.8,0.8175]
[1729676213633,3.87809,2578.6,2577.9,0.7568]
[1729676213819,3.87809,2578.6,2578.0,3.87896]
[1729676214741,3.87809,2578.6,2578.0,7.75776]
[1729676214946,3.87809,2578.6,2578.1,0.8343653]
[1729676215092,4.0029897,2578.8,2578.3,0.8015]
[1729676215297,4.0029897,2578.8,2578.4,0.07755894]
[1729676216231,7.8808897,2578.8,2578.4,0.07755894]
[1729676216429,3.87793,2578.7,2578.4,0.07755894]
[1729676216631,4.0029897,2578.8,2578.4,0.07755894]
[1729676217145,4.0029897,2578.8,2578.5,0.8015]
[1729676217146,0.1251397,2578.8,2578.5,0.8015]
[1729676217737,0.1251397,2578.8,2578.6,0.07755166]
[1729676217896,0.1251397,2578.8,2578.7,0.8015]
[1729676218093,0.1251397,2578.8,2578.7,4.67942]
[1729676218296,0.1251397,2578.8,2578.7,5.28695246]
[1729676218510,0.1251397,2578.8,2578.7,6.01090805]
[1729676219311,0.1251397,2578.8,2578.7,4.67942]
[1729676220227,0.1251397,2578.8,2578.7,0.8015]